bitfinex-derivatives/quotes_BTCF0:USTF0_20250216
["timestamp","ask_amount","ask_price","bid_price","bid_amount"]
[1739740833712,0.5671065,96929.0,96928.0,8e-05]
[1739740835705,0.5671065,96929.0,96928.0,0.00308]
[1739740835901,0.5681065,96929.0,96928.0,0.00308]
[1739740836907,0.2073065,96929.0,96928.0,0.00308]
[1739740837108,0.5681065,96929.0,96928.0,0.00308]
[1739740838711,0.5681065,96929.0,96928.0,0.00202354]
[1739740839417,0.7896465,96929.0,96928.0,0.00202354]
[1739740840016,0.7896865,96929.0,96928.0,0.00202354]
[1739740848028,0.7896865,96929.0,96928.0,0.03492354]
[1739740850630,0.7896865,96929.0,96928.0,0.60203214]
[1739740850631,0.22258,96929.0,96928.0,0.60203214]
[1739740850838,0.00108,96929.0,96928.0,0.60203214]
[1739740852131,8e-05,96929.0,96928.0,0.60203214]
[1739740852335,0.00108,96929.0,96928.0,0.60203214]
[1739740852842,0.00208,96929.0,96928.0,0.6060086]
[1739740853334,4e-05,96935.0,96933.0,0.2062972]
[1739740853534,4e-05,96935.0,96934.0,0.0589]
[1739740854637,4e-05,96935.0,96934.0,0.032]
[1739740854825,0.2062916,96936.0,96934.0,0.13384]
[1739740855027,0.2062916,96936.0,96934.0,0.032]
[1739740855739,0.36156,96947.0,96934.0,0.032]
[1739740855931,0.2062836,96940.0,96934.0,0.13372]
[1739740856128,0.2062836,96940.0,96934.0,0.035]
[1739740856332,0.2062836,96940.0,96934.0,0.2412957]
[1739740856526,0.2062836,96940.0,96939.0,0.3608]
[1739740858743,0.2062836,96940.0,96939.0,0.3638]
[1739740859340,0.2062836,96940.0,96939.0,0.003]
[1739740859636,0.2062836,96940.0,96939.0,0.006]
[1739740860141,0.2062836,96940.0,96939.0,0.005]
[1739740861646,0.2072836,96940.0,96939.0,0.003]
[1739740861847,0.001,96940.0,96934.0,0.032]
[1739740862036,0.20629,96937.0,96934.0,0.032]
[1739740862236,0.2215,96944.0,96939.0,0.001]
[1739740862737,0.2215,96944.0,96937.0,0.2062881]
[1739740863044,0.2072839,96940.0,96937.0,0.2062881]
[1739740863442,0.2062839,96940.0,96939.0,0.001]
[1739740864339,0.2062839,96940.0,96939.0,0.004]
[1739740864939,0.2062839,96940.0,96939.0,0.001]
[1739740865139,0.2062839,96940.0,96939.0,0.004]
[1739740865539,0.2062839,96940.0,96939.0,0.003]
[1739740865846,0.2062873,96938.0,96937.0,0.002]
[1739740866146,0.0314,96945.0,96939.0,0.001]
[1739740866742,0.2062894,96937.0,96936.0,0.3608]
[1739740868044,0.2062894,96937.0,96936.0,0.3638]
[1739740868749,0.2062894,96937.0,96936.0,0.3608]
[1739740868937,0.2062894,96937.0,96936.0,0.3638]
[1739740869538,0.2062894,96937.0,96936.0,0.3658]
[1739740870145,0.2062894,96937.0,96936.0,0.3648]
[1739740872440,0.2062894,96937.0,96936.0,0.3638]
[1739740872642,0.2062894,96937.0,96936.0,0.3648]
[1739740873647,0.2062894,96937.0,96936.0,0.3638]
[1739740873846,0.2062894,96937.0,96936.0,0.3618]
[1739740874036,0.2062894,96937.0,96936.0,0.3648]
[1739740874650,0.2062894,96937.0,96936.0,0.3618]
[1739740874850,0.2062894,96937.0,96936.0,0.3648]
[1739740875553,0.1539108,96944.0,96936.0,0.3618]
[1739740875749,0.1539108,96944.0,96937.0,0.2062881]
[1739740876449,0.1539108,96944.0,96936.0,0.3648]
[1739740876648,0.1539108,96944.0,96943.0,0.2062767]
[1739740878153,0.1539108,96944.0,96943.0,0.2072767]
[1739740878355,0.00015473,96949.0,96943.0,0.2072767]
[1739740878555,0.00015473,96949.0,96945.0,0.3608]
[1739740880254,0.00015473,96949.0,96945.0,0.3618]
[1739740880955,0.00015473,96949.0,96945.0,0.3648]
[1739740881746,0.00015473,96949.0,96945.0,0.3618]
[1739740881951,0.00015473,96949.0,96945.0,0.3648]
[1739740882557,0.20641913,96949.0,96945.0,0.3658]
[1739740882749,0.20641913,96949.0,96945.0,0.3668]
[1739740884258,0.20641913,96949.0,96945.0,0.002]
[1739740884259,0.2062703,96946.0,96945.0,0.002]
[1739740884457,0.2062703,96946.0,96945.0,0.006]
[1739740884846,0.2062703,96946.0,96945.0,0.004]
[1739740885159,0.2062703,96946.0,96945.0,0.006]
[1739740885456,0.2062703,96946.0,96945.0,0.005]
[1739740885961,0.2062703,96946.0,96945.0,0.004]
[1739740886163,0.2092703,96946.0,96945.0,0.004]
[1739740886552,0.2062703,96946.0,96945.0,0.004]
[1739740886753,0.2072703,96946.0,96945.0,0.004]
[1739740886958,0.3611811,96946.0,96945.0,0.004]
[1739740887460,0.3611811,96946.0,96945.0,0.002]
[1739740888760,0.2062873,96938.0,96937.0,0.0325]
[1739740889861,0.2062873,96938.0,96937.0,0.0335]
[1739740891459,0.15442725,96945.0,96937.0,0.0365]
[1739740891666,0.15442725,96945.0,96938.0,0.0324]
[1739740891872,0.15442725,96945.0,96943.0,0.2062764]
[1739740892057,0.15442725,96945.0,96944.0,0.5670745]
[1739740894368,0.00015473,96949.0,96948.0,0.206266]
[1739740896562,0.00015473,96949.0,96948.0,0.207266]
[1739740897067,0.00015473,96949.0,96948.0,0.210266]
[1739740902072,0.00015473,96949.0,96948.0,0.571066]
[1739740905178,0.00015473,96949.0,96948.0,0.3648]
[1739740906474,0.20641863,96949.0,96948.0,0.3648]
[1739740907275,0.20641863,96949.0,96948.0,0.004]
[1739740908475,0.20641863,96949.0,96948.0,0.003]
[1739740908678,0.20741863,96949.0,96948.0,0.003]
[1739740909076,0.00115473,96949.0,96948.0,0.003]
[1739740909980,0.00115473,96949.0,96945.0,0.2062723]
[1739740910277,0.00215473,96949.0,96945.0,0.01]
[1739740910481,0.2062663,96948.0,96945.0,0.01]
[1739740911984,0.2062663,96948.0,96945.0,0.012]
[1739740912375,0.00015473,96949.0,96945.0,0.016]
[1739740912575,0.00015473,96949.0,96948.0,0.3608]
[1739740913381,0.20641863,96949.0,96948.0,0.3608]
[1739740914674,0.20641863,96949.0,96948.0,0.003]
[1739740914879,0.20641863,96949.0,96948.0,0.001]
[1739740915075,0.2062873,96938.0,96937.0,0.0325]
[1739740915384,0.2062873,96938.0,96937.0,0.01]
[1739740916370,0.2062873,96938.0,96937.0,0.014]
[1739740916983,0.2072873,96938.0,96937.0,0.019]
[1739740917180,0.5680873,96938.0,96937.0,0.019]
[1739740918673,0.5680873,96938.0,96937.0,0.009]
[1739740926080,0.2063022,96931.0,96930.0,4e-05]
[1739740927290,0.2073022,96931.0,96930.0,0.00504]
[1739740927489,0.2073022,96931.0,96930.0,0.01204]
[1739740932203,0.2073022,96931.0,96930.0,0.012]
[1739740934601,0.4288022,96931.0,96930.0,0.012]
[1739740941301,0.4288022,96931.0,96924.0,0.00016]
[1739740941302,0.2063129,96926.0,96925.0,1e-07]
[1739740941500,0.206315,96925.0,96924.0,1e-07]
[1739740941702,0.237315,96925.0,96924.0,1e-07]
[1739740942703,0.237315,96925.0,96924.0,0.0040001]
[1739740943203,0.238315,96925.0,96924.0,0.0040001]
[1739740943504,0.28966654,96925.0,96924.0,0.0040001]
[1739740944192,0.28966654,96925.0,96924.0,0.0039601]
[1739740946210,0.51116654,96925.0,96924.0,0.0039601]
[1739740946807,0.51120654,96925.0,96924.0,0.0039601]
[1739740947306,0.51124654,96925.0,96924.0,0.0039601]
[1739740947519,0.51124654,96925.0,96924.0,1e-07]
[1739740947706,0.51128654,96925.0,96924.0,1e-07]
[1739740961033,0.51028654,96925.0,96924.0,1e-07]
[1739740962229,0.2063384,96914.0,96904.0,0.0323]
[1739740962436,0.7886384,96914.0,96904.0,0.0323]
[1739740963630,0.5823,96914.0,96904.0,0.0323]
[1739740963841,0.5671576,96905.0,96904.0,0.0323]
[1739740965437,0.5681576,96905.0,96904.0,0.0323]
[1739740965742,0.5691576,96905.0,96904.0,0.0323]
[1739740967134,0.72330425,96905.0,96904.0,0.0323]
[1739740970138,0.5691576,96905.0,96904.0,0.0323]
[1739740971142,0.5681576,96905.0,96904.0,0.0323]
[1739740975050,0.72230722,96905.0,96904.0,0.0323]
[1739740978150,0.5681576,96905.0,96904.0,0.0323]
[1739740978351,0.206364,96902.0,96901.0,0.0302]
[1739740980254,0.207364,96902.0,96901.0,0.0302]
[1739740980748,0.21792634,96902.0,96901.0,0.0302]
[1739740981158,0.2063661,96901.0,96895.0,0.01040761]
[1739740981351,0.2387661,96901.0,96896.0,0.0328]
[1739740983750,0.29265157,96901.0,96896.0,0.0328]
[1739740983955,0.29365157,96901.0,96896.0,0.0328]
[1739740984456,0.29265157,96901.0,96896.0,0.0328]
[1739740986163,0.29165157,96901.0,96896.0,0.0328]
[1739740988155,0.29165157,96901.0,96888.0,0.0325]
[1739740988455,0.29165157,96901.0,96888.0,0.0657]
[1739740989250,0.29165157,96901.0,96894.0,0.0101314]
[1739740989552,0.29165157,96901.0,96888.0,0.0657]
[1739740989955,0.47666094,96901.0,96888.0,0.0657]
[1739740990452,0.27029484,96901.0,96889.0,0.2063913]
[1739740990660,0.07247863,96900.0,96890.0,0.07247863]
[1739740990860,0.07247863,96900.0,96890.0,0.08290186]
[1739740991058,0.2063869,96892.0,96890.0,0.08290186]
[1739740991252,0.2063869,96892.0,96890.0,0.01042323]
[1739740991446,0.2063916,96889.0,96888.0,0.0657]
[1739740993859,0.2073916,96889.0,96888.0,0.0657]
[1739740994662,0.2073916,96889.0,96888.0,0.07603628]
[1739741005166,0.001,96889.0,96888.0,0.28242998]
[1739741013572,0.0651,96889.0,96888.0,0.28242998]
[1739741014064,0.2714916,96889.0,96888.0,0.07603628]
[1739741014265,0.2714916,96889.0,96888.0,0.04353628]
[1739741018575,0.0651,96889.0,96888.0,0.04353628]
[1739741020480,0.15439512,96899.0,96897.0,0.2063733]
[1739741020680,0.0629,96898.0,96895.0,0.3608]
[1739741021780,0.0629,96898.0,96897.0,0.002]
[1739741022469,0.0629,96898.0,96895.0,0.3638]
[1739741022883,0.0629,96898.0,96895.0,0.3678]
[1739741023381,0.0629,96898.0,96897.0,0.001]
[1739741023979,0.0629,96898.0,96895.0,0.3648]
[1739741024372,0.0629,96898.0,96897.0,0.003]
[1739741024574,0.0629,96898.0,96897.0,0.004]
[1739741025068,0.0629,96898.0,96897.0,0.001]
[1739741026183,0.0629,96898.0,96897.0,0.004]
[1739741026680,0.0629,96898.0,96897.0,0.003]
[1739741027177,0.0629,96898.0,96897.0,0.004]
[1739741027483,0.2692724,96898.0,96897.0,0.004]
[1739741035380,0.42366752,96898.0,96897.0,0.004]
[1739741036379,0.15439512,96898.0,96897.0,0.2103745]
[1739741036682,0.15439512,96898.0,96897.0,0.2203745]
[1739741036882,0.15439512,96898.0,96897.0,0.5811745]
[1739741037280,0.00015481,96901.0,96900.0,0.2063682]
[1739741037475,0.00015481,96901.0,96900.0,0.3563682]
[1739741038082,0.00012,96914.0,96912.0,0.2063426]
[1739741038276,0.00012,96914.0,96912.0,0.3808]
[1739741038485,0.00012,96914.0,96912.0,0.48136]
[1739741038688,0.00012,96914.0,96912.0,0.6877026]
[1739741038993,0.00012,96914.0,96912.0,0.5871426]
[1739741039589,0.00412,96913.0,96912.0,0.5871426]
[1739741039983,0.00412,96913.0,96912.0,0.3808]
[1739741040179,0.00712,96913.0,96912.0,0.4816]
[1739741040585,0.00712,96913.0,96912.0,0.4128]
[1739741040782,0.00712,96913.0,96912.0,0.51364]
[1739741040983,0.2862,96938.0,96912.0,0.54694]
[1739741041193,0.2862,96938.0,96921.0,0.3608]
[1739741041194,0.21440406,96925.0,96921.0,0.3608]
[1739741041483,0.21428224,96925.0,96924.0,0.2063171]
[1739741041684,0.21428224,96925.0,96924.0,0.4263171]
[1739741042194,0.0328,96938.0,96928.0,0.2063086]
[1739741042384,0.00015481,96934.0,96933.0,0.2062979]
[1739741043679,0.00015481,96934.0,96933.0,0.21657952]
[1739741043882,0.00615481,96934.0,96933.0,0.21657952]
[1739741045588,0.01115481,96934.0,96933.0,0.21657952]
[1739741051796,0.01115481,96934.0,96933.0,0.01028162]
[1739741052099,0.01115481,96934.0,96931.0,0.3608]
[1739741052287,0.2063001,96932.0,96931.0,0.3608]
[1739741052697,0.0314,96933.0,96930.0,0.01016788]
[1739741052891,0.2063089,96928.0,96924.0,0.11048916]
[1739741053094,0.0314,96933.0,96924.0,0.00015481]
[1739741053298,0.2063143,96926.0,96924.0,0.00015481]
[1739741053499,0.033,96925.0,96924.0,0.00015481]
[1739741054092,0.2063277,96919.0,96917.0,4e-05]
[1739741055893,0.2063277,96919.0,96918.0,0.00104]
[1739741056291,0.5671277,96919.0,96918.0,0.00104]
[1739741056493,0.5681277,96919.0,96918.0,0.00104]
[1739741056694,0.5681277,96919.0,96917.0,4e-05]
[1739741057496,0.0327,96918.0,96917.0,4e-05]
[1739741058693,0.0357,96918.0,96917.0,4e-05]
[1739741059495,0.0327,96918.0,96917.0,4e-05]
[1739741060302,0.0367,96918.0,96917.0,4e-05]
[1739741060703,0.0327,96918.0,96917.0,4e-05]
[1739741060903,0.0337,96918.0,96917.0,4e-05]
[1739741062404,0.206332,96917.0,96915.0,0.0002]
[1739741062796,0.206372,96917.0,96915.0,0.0002]
[1739741062997,0.206372,96917.0,96916.0,4e-05]
[1739741063999,0.207372,96917.0,96916.0,4e-05]
[1739741064398,0.206372,96917.0,96916.0,4e-05]
[1739741064597,0.207372,96917.0,96916.0,4e-05]
[1739741065906,0.00104,96917.0,96916.0,0.47084]
[1739741066206,0.19484149,96948.0,96916.0,0.5724]
[1739741066401,0.19484149,96948.0,96928.0,0.5671085]
[1739741066402,0.0971,96938.0,96928.0,0.5671085]
[1739741066997,0.0971,96938.0,96933.0,0.2062979]
[1739741067203,0.00154801,96945.0,96933.0,0.22]
[1739741067410,0.00154801,96945.0,96944.0,0.3608]
[1739741068508,0.00854801,96945.0,96944.0,0.3608]
[1739741069307,0.00554801,96945.0,96944.0,0.3608]
[1739741069508,0.00854801,96945.0,96944.0,0.3608]
[1739741069913,0.004,96945.0,96944.0,0.3608]
[1739741070214,0.009,96945.0,96944.0,0.46236]
[1739741071001,0.009,96945.0,96944.0,0.47247198]
[1739741071309,0.009,96945.0,96944.0,0.37091198]
[1739741077805,0.2152723,96945.0,96944.0,0.37091198]
[1739741080717,0.009,96945.0,96944.0,0.37091198]
[1739741083917,0.009,96945.0,96944.0,0.01011198]
[1739741084117,0.009,96945.0,96935.0,0.00015473]
[1739741084317,0.009,96945.0,96935.0,0.20644823]
[1739741084513,0.2062792,96942.0,96935.0,0.20644823]
[1739741084718,0.0329,96941.0,96935.0,0.21695557]
[1739741084917,0.0329,96941.0,96937.0,0.2062889]
[1739741087509,0.0339,96941.0,96937.0,0.2062889]
[1739741088615,0.0359,96941.0,96937.0,0.2062889]
[1739741091706,0.2062895,96937.0,96935.0,0.01066207]
[1739741092821,0.2072895,96937.0,96935.0,0.01066207]
[1739741093626,0.2092895,96937.0,96935.0,0.01066207]
[1739741098721,0.2092895,96937.0,96935.0,0.02066207]
[1739741101031,0.003,96937.0,96936.0,0.2062915]
[1739741101326,0.003,96937.0,96936.0,0.2262915]
[1739741101721,0.003,96937.0,96936.0,0.02]
[1739741101915,0.003,96937.0,96936.0,0.12096]
[1739741102322,0.003,96937.0,96936.0,0.3272515]
[1739741102527,0.003,96937.0,96936.0,0.2262915]
[1739741103929,0.001,96937.0,96936.0,0.2262915]
[1739741104132,0.003,96937.0,96936.0,0.2262915]
[1739741104536,0.063,96948.0,96936.0,0.02]
[1739741104720,0.1538207,96952.0,96947.0,0.3608]
[1739741104922,0.1538207,96952.0,96948.0,0.1954]
[1739741105132,0.1538207,96952.0,96948.0,0.1315]
[1739741105330,0.1538207,96952.0,96948.0,0.0305]
[1739741106926,0.00504,96950.0,96948.0,0.0315]
[1739741107529,0.00504,96950.0,96948.0,0.237765]
[1739741107730,0.01104,96950.0,96948.0,0.238765]
[1739741109845,0.00504,96950.0,96948.0,0.239765]
[1739741110047,4e-05,96950.0,96948.0,0.242765]
[1739741110954,4e-05,96950.0,96948.0,0.0365]
[1739741112351,0.20640853,96954.0,96948.0,0.0365]
[1739741112750,0.20640853,96954.0,96948.0,0.006]
[1739741113248,0.20640853,96954.0,96948.0,0.212265]
[1739741113754,0.20640853,96954.0,96948.0,0.210265]
[1739741113957,0.20640853,96954.0,96948.0,0.208265]
[1739741114154,0.20640853,96954.0,96948.0,0.212265]
[1739741117648,0.00015473,96954.0,96948.0,0.006]
[1739741117854,0.2062554,96953.0,96948.0,0.006]
[1739741118951,0.2062554,96953.0,96948.0,0.2122649]
[1739741119151,0.2062554,96953.0,96949.0,0.2062635]
[1739741119950,0.20573385,96953.0,96949.0,0.2062635]
[1739741120355,0.20573385,96953.0,96949.0,0.2092635]
[1739741120761,0.20573385,96953.0,96949.0,0.2112635]
[1739741121160,0.2062583,96952.0,96949.0,0.005]
[1739741122159,0.2062583,96952.0,96949.0,0.003]
[1739741122354,0.2062583,96952.0,96949.0,0.005]
[1739741122555,0.00015473,96954.0,96949.0,0.2112634]
[1739741123160,0.2062576,96952.0,96950.0,0.2062611]
[1739741124062,0.2062617,96950.0,96949.0,0.005]
[1739741124270,0.2062617,96950.0,96932.0,8e-05]
[1739741124271,0.2062915,96936.0,96932.0,8e-05]
[1739741124861,0.2062915,96936.0,96932.0,4e-05]
[1739741125063,0.2062915,96936.0,96935.0,0.00015473]
[1739741125459,0.2082915,96936.0,96935.0,0.00015473]
[1739741126368,0.2062979,96933.0,96932.0,4e-05]
[1739741126569,0.2062979,96933.0,96915.0,0.0002]
[1739741126570,0.2063298,96918.0,96915.0,0.0002]
[1739741128061,0.2063298,96918.0,96917.0,0.00204]
[1739741128859,0.2063298,96918.0,96917.0,0.00104]
[1739741129262,0.2063298,96918.0,96917.0,0.00304]
[1739741131159,0.0645,96924.0,96919.0,0.2063268]
[1739741131360,0.0645,96924.0,96918.0,0.2063298]
[1739741131662,0.0645,96924.0,96917.0,0.00304]
[1739741132372,0.0645,96924.0,96923.0,0.3608]
[1739741132862,0.00015473,96927.0,96923.0,0.3608]
[1739741133063,0.00015473,96927.0,96925.0,0.3608]
[1739741134569,0.00115473,96927.0,96925.0,0.3608]
[1739741135163,0.00015473,96927.0,96925.0,0.3608]
[1739741135368,0.00015473,96927.0,96925.0,0.3618]
[1739741135560,0.00015473,96927.0,96925.0,0.3638]
[1739741136666,0.20646723,96927.0,96925.0,0.003]
[1739741136971,0.20646723,96927.0,96925.0,0.004]
[1739741138057,0.20646723,96927.0,96925.0,0.003]
[1739741138460,0.20646723,96927.0,96925.0,0.001]
[1739741138666,0.20646723,96927.0,96925.0,0.003]
[1739741139364,0.20646723,96927.0,96925.0,0.002]
[1739741140170,0.00115473,96927.0,96917.0,0.36084]
[1739741140364,0.20632,96923.0,96917.0,0.36084]
[1739741140565,0.094,96922.0,96918.0,0.1018]
[1739741141063,0.00215473,96927.0,96926.0,0.2063128]
[1739741141372,4e-05,96932.0,96929.0,0.2063064]
[1739741141575,4e-05,96932.0,96930.0,0.4237]
[1739741141769,4e-05,96932.0,96930.0,0.5337]
[1739741142166,4e-05,96932.0,96931.0,0.2063022]
[1739741142368,4e-05,96932.0,96931.0,0.3063022]
[1739741143260,4e-05,96932.0,96931.0,0.3103022]
[1739741144367,4e-05,96955.0,96949.0,0.2062639]
[1739741144562,4e-05,96955.0,96950.0,0.4552]
[1739741144766,0.18456696,96961.0,96951.0,0.2062596]
[1739741144767,8e-05,96953.0,96951.0,0.2062596]
[1739741144959,8e-05,96953.0,96951.0,0.4362596]
[1739741145677,0.1588607,96952.0,96951.0,0.4362596]
[1739741145976,0.00504,96952.0,96951.0,0.4362596]
[1739741146361,0.00304,96952.0,96951.0,0.4362596]
[1739741146562,0.00304,96952.0,96951.0,0.4392596]
[1739741147274,0.00015473,96961.0,96957.0,0.2062468]
[1739741148974,0.00104,96958.0,96957.0,0.2062468]
[1739741149373,0.00104,96958.0,96957.0,0.21683174]
[1739741149575,0.00104,96958.0,96956.0,0.3608]
[1739741149767,0.0622,96957.0,96956.0,0.3608]
[1739741149967,0.0622,96957.0,96956.0,0.4624]
[1739741150170,0.0622,96957.0,96956.0,0.3608]
[1739741150463,0.0622,96957.0,96956.0,0.46236]
[1739741151671,0.0622,96957.0,96956.0,0.46336]
[1739741152882,0.0622,96957.0,96956.0,0.46236]
[1739741153083,0.0622,96957.0,96956.0,0.46336]
[1739741154080,0.2684469,96957.0,96956.0,0.46336]
[1739741154275,0.3004469,96957.0,96956.0,0.3618]
[1739741155878,0.0942,96957.0,96956.0,0.3618]
[1739741156087,0.0942,96957.0,96956.0,0.669409]
[1739741156287,0.0942,96957.0,96956.0,0.568049]
[1739741156480,0.0628,96957.0,96956.0,0.568049]
[1739741156679,4e-05,96958.0,96957.0,0.2062469]
[1739741158187,4e-05,96958.0,96957.0,0.2092469]
[1739741158587,0.00104,96958.0,96957.0,0.2142469]
[1739741159186,4e-05,96958.0,96957.0,0.2417469]
[1739741159387,0.00104,96958.0,96957.0,0.2467469]
[1739741160289,0.00104,96958.0,96957.0,0.2487469]
[1739741160790,0.00104,96958.0,96957.0,0.2497469]
[1739741160977,0.00104,96958.0,96957.0,0.2487469]
[1739741161581,0.00104,96958.0,96957.0,0.2477469]
[1739741161787,0.00104,96958.0,96957.0,0.2152469]
[1739741162982,0.00104,96958.0,96957.0,0.2112469]
[1739741163182,0.00104,96958.0,96957.0,0.2152469]
[1739741163584,4e-05,96958.0,96957.0,0.2062469]
[1739741163792,0.00104,96958.0,96957.0,0.2152469]
[1739741164485,0.00104,96958.0,96957.0,0.2162469]
[1739741165491,0.00104,96958.0,96957.0,0.2152469]
[1739741166278,0.0624,96971.0,96958.0,0.0515611]
[1739741166587,0.0624,96971.0,96970.0,0.5670192]
[1739741167992,0.0624,96971.0,96970.0,0.5680192]
[1739741169891,0.0624,96971.0,96970.0,0.58413515]
[1739741170992,0.0624,96971.0,96970.0,0.5680192]
[1739741171194,0.0624,96971.0,96970.0,0.58413499]
[1739741175396,0.0624,96971.0,96970.0,0.58413456]
[1739741181403,0.0624,96971.0,96970.0,0.5680192]
[1739741181592,0.0624,96971.0,96970.0,0.58413481]
[1739741181997,0.0624,96971.0,96970.0,0.58313483]
[1739741182188,0.0634,96971.0,96970.0,0.58913483]
[1739741182392,0.0634,96971.0,96970.0,0.59413483]
[1739741182795,0.0624,96971.0,96970.0,0.58813483]
[1739741182995,0.0634,96971.0,96970.0,0.58913483]
[1739741183194,0.0634,96971.0,96970.0,0.59313483]
[1739741183600,0.001,96971.0,96970.0,0.64313483]
[1739741183801,0.0642,96979.0,96975.0,0.2062085]
[1739741183994,0.0642,96979.0,96975.0,0.22232413]
[1739741184908,0.0642,96979.0,96975.0,0.01611563]
[1739741185098,0.0642,96979.0,96978.0,0.2062022]
[1739741185405,0.0642,96979.0,96978.0,0.22231783]
[1739741185602,0.0642,96979.0,96978.0,0.22231632]
[1739741185902,0.03518159,96979.0,96978.0,0.22231632]
[1739741186591,0.03518159,96979.0,96978.0,0.22431632]
[1739741186989,0.03518159,96979.0,96978.0,0.22731632]
[1739741188599,0.03518159,96979.0,96971.0,0.36132]
[1739741188800,0.2062135,96973.0,96972.0,0.01611592]
[1739741189400,0.2062243,96968.0,96960.0,0.3608]
[1739741189910,0.2062243,96968.0,96960.0,0.5670396]
[1739741190102,0.2062243,96968.0,96960.0,0.5675596]
[1739741190607,0.2062243,96968.0,96960.0,0.00052]
[1739741190902,0.2062243,96968.0,96959.0,0.00012]
[1739741191704,0.2062243,96968.0,96959.0,0.2063623]
[1739741191903,0.0305,96967.0,96966.0,0.00215473]
[1739741192502,0.0305,96967.0,96966.0,0.00015473]
[1739741192704,0.0305,96967.0,96966.0,0.00115473]
[1739741193500,0.0305,96967.0,96966.0,0.00215473]
[1739741195007,0.0305,96967.0,96966.0,0.00415473]
[1739741195504,0.0305,96967.0,96966.0,0.00515473]
[1739741196004,0.0305,96967.0,96966.0,0.00015473]
[1739741196311,0.0621,96967.0,96966.0,0.00515473]
[1739741196609,0.2683255,96967.0,96966.0,0.00415473]
[1739741196799,0.2683255,96967.0,96966.0,0.00115473]
[1739741196999,0.2683255,96967.0,96966.0,0.00315473]
[1739741199010,0.2683255,96967.0,96966.0,0.00215473]
[1739741199206,0.2683255,96967.0,96966.0,0.00115473]
[1739741200005,0.2367255,96967.0,96966.0,0.00115473]
[1739741203812,0.0305,96967.0,96966.0,0.20738243]
[1739741204009,0.3608,96972.0,96966.0,0.20738243]
[1739741204208,0.3760407,96977.0,96966.0,0.12115473]
[1739741204209,0.0307,96976.0,96966.0,0.12115473]
[1739741204410,0.0307,96976.0,96975.0,0.2062085]
[1739741204817,0.1545407,96977.0,96976.0,0.2062064]
[1739741205108,0.00019473,96980.0,96976.0,0.01611542]
[1739741205109,0.1538207,96978.0,96976.0,0.01611542]
[1739741205311,0.1538207,96978.0,96977.0,0.04881542]
[1739741205807,0.1538207,96978.0,96977.0,0.36501972]
[1739741206011,0.18456696,96984.0,96983.0,0.2061915]
[1739741206213,0.18456696,96984.0,96983.0,0.69310692]
[1739741206511,0.18456696,96984.0,96983.0,0.69310494]
[1739741207309,0.00015473,96993.0,96986.0,0.2061851]
[1739741207501,0.00015473,96993.0,96986.0,0.45229854]
[1739741207910,0.00015473,96993.0,96986.0,0.2061851]
[1739741208114,0.00015473,96993.0,96986.0,0.22229796]
[1739741208705,0.00304,96987.0,96986.0,0.22229796]
[1739741209114,0.00604,96987.0,96986.0,0.22229796]
[1739741209711,0.006,96987.0,96986.0,0.22229796]
[1739741210107,0.006,96987.0,96986.0,0.01611286]
[1739741214014,0.006,96987.0,96986.0,0.01611351]
[1739741214720,0.006,96987.0,96986.0,0.0161137]
[1739741215219,0.0306,96991.0,96986.0,0.0231137]
[1739741215420,0.0306,96991.0,96987.0,0.0161137]
[1739741215621,0.0306,96991.0,96988.0,0.0161137]
[1739741215921,0.0306,96991.0,96989.0,0.0161137]
[1739741216123,0.0306,96991.0,96990.0,0.0161137]
[1739741216314,0.0306,96991.0,96990.0,0.01611371]
[1739741218108,0.0306,96991.0,96987.0,0.002]
[1739741218427,0.0306,96991.0,96988.0,0.11735357]
[1739741218613,0.0306,96991.0,96989.0,0.01611357]
[1739741218814,0.0306,96991.0,96990.0,0.01711357]
[1739741220118,0.2367745,96991.0,96990.0,0.01711357]
[1739741220331,0.2367745,96991.0,96990.0,0.01711366]
[1739741220524,0.2367745,96991.0,96990.0,0.01611366]
[1739741221324,0.2367745,96991.0,96990.0,0.01711366]
[1739741222114,0.2367745,96991.0,96990.0,0.01611366]
[1739741222316,0.2367745,96991.0,96990.0,0.01811366]
[1739741227418,0.2367745,96991.0,96990.0,0.01711366]
[1739741230331,0.2367745,96991.0,96990.0,0.01711497]
[1739741231231,0.0306,96991.0,96990.0,0.01811497]
[1739741231424,0.0309,96992.0,96991.0,0.2061745]
[1739741231626,0.0309,96992.0,96991.0,0.25488947]
[1739741231822,0.00015473,96993.0,96991.0,0.0487143]
[1739741232023,0.00015473,96993.0,96992.0,0.2222867]
[1739741232331,0.0317,97005.0,96998.0,0.2061597]
[1739741232626,0.0302,97001.0,96999.0,0.2061575]
[1739741232831,0.0302,97001.0,96999.0,0.2222718]
[1739741233126,0.093,97005.0,96999.0,0.2222718]
[1739741233922,0.093,97005.0,96999.0,0.2222699]
[1739741234724,0.101,97000.0,96999.0,0.2222699]
[1739741235323,0.102,97000.0,96999.0,0.0161124]
[1739741235525,0.3081554,97000.0,96999.0,0.0161124]
[1739741236333,0.3081554,97000.0,96999.0,0.04189235]
[1739741237028,0.102,97000.0,96999.0,0.04189235]
[1739741237619,0.102,97000.0,96999.0,0.24804985]
[1739741240025,0.102,97000.0,96999.0,0.24804927]
[1739741242034,0.102,97000.0,96999.0,0.24804925]
[1739741243824,0.102,97000.0,96999.0,0.44804925]
[1739741244025,4e-05,97006.0,96999.0,0.44804925]
[1739741244026,4e-05,97006.0,97005.0,0.2061448]
[1739741244229,4e-05,97006.0,97005.0,0.24803364]
[1739741245134,0.00304,97006.0,97005.0,0.24803364]
[1739741245335,0.00604,97006.0,97005.0,0.24803364]
[1739741246029,0.00604,97006.0,97005.0,0.24803161]
[1739741247927,0.00010272,97009.0,97005.0,0.04188681]
[1739741248134,0.0661,97018.0,97014.0,0.2061247]
[1739741248337,0.0661,97018.0,97017.0,0.3608]
[1739741248526,0.0661,97018.0,97017.0,0.40268681]
[1739741248728,0.0661,97018.0,97017.0,0.40268478]
[1739741250334,0.0328,97018.0,97017.0,0.40268478]
[1739741250723,0.0358,97018.0,97017.0,0.40468478]
[1739741252035,0.0358,97018.0,97017.0,0.41486097]
[1739741252239,0.0358,97018.0,97017.0,0.41486089]